[Event "African Open (w)"]
[Site "followchess.com"]
[Date "2022.09.20"]
[Round "3"]
[White "Pires, Luzia"]
[Black "Nkhoma, Desiderata"]
[Result "1-0"]
[ECO "D02"]
[WhiteElo "1839"]
[BlackElo "1446"]
[PlyCount "129"]
[EventDate "2022.??.??"]
[TimeControl "5400+30"]

1. d4 {[%emt 0:00:10]} d5 {[%emt 0:00:26]} 2. Nf3 {[%emt 0:00:08]} c6 {[%emt 0:
01:21]} 3. e3 {[%emt 0:00:15]} Nf6 {[%emt 0:01:42]} 4. Bd3 {[%emt 0:00:17]} Bg4
{[%emt 0:04:08]} 5. Nbd2 {[%emt 0:00:16]} e6 {[%emt 0:03:37]} 6. c3 {[%emt 0:
04:14]} Bd6 {[%emt 0:04:35]} 7. Qc2 {[%emt 0:02:18]} h6 {[%emt 0:02:26]} 8. b3
{[%emt 0:00:52]} O-O {[%emt 0:09:36]} 9. h3 {[%emt 0:03:29]} Bxf3 {[%emt 0:01:
24]} 10. gxf3 {[%emt 0:05:34]} Nh5 {[%emt 0:09:11]} 11. f4 {[%emt 0:02:43]} f5
{[%emt 0:02:17]} 12. Nf3 {[%emt 0:01:59]} Nd7 {[%emt 0:03:20]} 13. Qe2 {
[%emt 0:00:52]} Nhf6 {[%emt 0:02:13]} 14. Ne5 {[%emt 0:00:56]} Ne4 {[%emt 0:01:
16]} 15. Bxe4 {[%emt 0:00:22]} fxe4 {[%emt 0:01:12]} 16. Qg4 {[%emt 0:00:57]}
Bxe5 {[%emt 0:05:42]} 17. Qxe6+ {[%emt 0:00:52]} Rf7 {[%emt 0:01:57]} 18. dxe5
{[%emt 0:00:15]} Qe7 {[%emt 0:00:51]} 19. Qg6 {[%emt 0:01:24]} Nxe5 {[%emt 0:
02:11]} 20. fxe5 {[%emt 0:00:41]} Qxe5 {[%emt 0:00:18]} 21. Bb2 {[%emt 0:01:30]
} Raf8 {[%emt 0:02:03]} 22. O-O-O {[%emt 0:25:04]} Rxf2 {[%emt 0:02:13]} 23.
Rd2 {[%emt 0:04:33]} Qf6 {[%emt 0:09:46]} 24. Qxf6 {[%emt 0:02:04]} R8xf6 {
[%emt 0:00:30]} 25. Rh2 {[%emt 0:02:09]} Rxh2 {[%emt 0:02:34]} 26. Rxh2 {
[%emt 0:00:02]} Rf3 {[%emt 0:00:40]} 27. Kd2 {[%emt 0:00:22]} g5 {[%emt 0:00:
26]} 28. c4 {[%emt 0:00:21]} Kf7 {[%emt 0:01:01]} 29. cxd5 {[%emt 0:01:06]}
cxd5 {[%emt 0:00:36]} 30. Bd4 {[%emt 0:00:40]} a6 {[%emt 0:00:29]} 31. Kc3 {
[%emt 0:00:30]} Ke6 {[%emt 0:05:55]} 32. Kb4 {[%emt 0:00:49]} Rf7 {[%emt 0:02:
43]} 33. Kc5 {[%emt 0:01:11]} Rc7+ {[%emt 0:02:31]} 34. Kb6 {[%emt 0:00:13]}
Rf7 {[%emt 0:00:30]} 35. a4 {[%emt 0:01:02]} Kd6 {[%emt 0:01:47]} 36. a5 {
[%emt 0:01:01]} Ke6 {[%emt 0:00:38]} 37. b4 {[%emt 0:00:46]} h5 {[%emt 0:02:32]
} 38. Rg2 {[%emt 0:02:52]} Kf5 {[%emt 0:03:56]} 39. Rf2+ {[%emt 0:02:17]} Ke6 {
[%emt 0:00:12]} 40. Rg2 {[%emt 0:01:28]} Kf5 {[%emt 0:00:41]} 41. Kc5 {[%emt 0:
00:20]} Rd7 {[%emt 0:01:03]} 42. Rf2+ {[%emt 0:00:09]} Kg6 {[%emt 0:01:31]} 43.
Rf6+ {[%emt 0:00:01]} Kh7 {[%emt 0:00:44]} 44. Rd6 {[%emt 0:08:39]} Rxd6 {
[%emt 0:00:00]} 45. Kxd6 {[%emt 0:00:00]} Kg6 {[%emt 0:00:00]} 46. Kxd5 {
[%emt 0:00:00]} Kf5 {[%emt 0:00:00]} 47. Be5 {[%emt 0:00:00]} g4 {[%emt 0:00:
00]} 48. hxg4+ {[%emt 0:00:00]} hxg4 {[%emt 0:00:00]} 49. Bg3 {[%emt 0:00:00]}
Kg6 {[%emt 0:00:00]} 50. Kxe4 {[%emt 0:00:00]} Kf6 {[%emt 0:00:00]} 51. Kd5 {
[%emt 0:00:00]} Ke7 {[%emt 0:00:00]} 52. Ke5 {[%emt 0:00:00]} Kd7 53. Kf5 Kc6 {
[%emt 0:02:23]} 54. Kxg4 {[%emt 0:00:00]} b6 {[%emt 0:00:18]} 55. axb6 {
[%emt 0:00:00]} Kxb6 {[%emt 0:00:06]} 56. Be1 {[%emt 0:00:00]} Kc6 {[%emt 0:00:
53]} 57. Kf5 {[%emt 0:00:00]} Kd6 {[%emt 0:00:27]} 58. e4 {[%emt 0:00:00]} Ke7
{[%emt 0:00:21]} 59. e5 {[%emt 0:00:00]} Kf7 {[%emt 0:00:14]} 60. Bh4 {[%emt 0:
00:00]} Ke8 {[%emt 0:00:43]} 61. Ke6 {[%emt 0:00:00]} Kf8 {[%emt 0:00:36]} 62.
Kd7 {[%emt 0:00:00]} a5 {[%emt 0:00:29]} 63. e6 {[%emt 0:00:00]} axb4 {[%emt 0:
00:36]} 64. Be7+ {[%emt 0:00:00]} Kg7 {[%emt 0:00:35]} 65. Bxb4 {[%emt 0:00:00]
} 1-0

[Event "African Open (w)"]
[Site "followchess.com"]
[Date "2022.09.20"]
[Round "3"]
[White "Pelomoh Jessica"]
[Black "Abigail Karyah"]
[Result "1-0"]
[ECO "D02"]
[WhiteElo "1904"]
[BlackElo "1435"]
[PlyCount "81"]
[EventDate "2022.??.??"]
[TimeControl "5400+30"]

1. d4 {[%emt 0:00:33]} d5 {[%emt 0:00:07]} 2. Bf4 {[%emt 0:00:11]} Nf6 {
[%emt 0:00:22]} 3. Nf3 {[%emt 0:00:07]} e6 {[%emt 0:00:15]} 4. e3 {[%emt 0:00:
09]} Be7 {[%emt 0:00:33]} 5. Nbd2 {[%emt 0:00:25]} Nbd7 {[%emt 0:00:28]} 6. c4
{[%emt 0:01:07]} c5 {[%emt 0:00:17]} 7. Qa4 {[%emt 0:03:25]} O-O {[%emt 0:00:
34]} 8. cxd5 {[%emt 0:02:42]} Nxd5 {[%emt 0:00:30]} 9. Bg3 {[%emt 0:02:26]} Bf6
{[%emt 0:02:12]} 10. Be2 {[%emt 0:08:42]} N7b6 {[%emt 0:01:41]} 11. Qb3 {
[%emt 0:02:21]} cxd4 {[%emt 0:00:44]} 12. Nxd4 {[%emt 0:02:08]} Bxd4 {[%emt 0:
02:27]} 13. exd4 {[%emt 0:00:03]} Qf6 {[%emt 0:01:16]} 14. Be5 {[%emt 0:05:09]}
Qg5 {[%emt 0:01:51]} 15. Nf3 {[%emt 0:02:26]} Qe7 {[%emt 0:01:43]} 16. O-O {
[%emt 0:00:33]} Rd8 {[%emt 0:02:06]} 17. Rac1 {[%emt 0:00:16]} Bd7 {[%emt 0:01:
41]} 18. a3 {[%emt 0:06:01]} Rac8 {[%emt 0:01:42]} 19. h3 {[%emt 0:08:53]} Ba4
{[%emt 0:04:33]} 20. Qa2 {[%emt 0:05:29]} Qe8 {[%emt 0:01:04]} 21. b3 {[%emt 0:
05:17]} Nc3 {[%emt 0:01:24]} 22. Rxc3 {[%emt 0:00:43]} Rxc3 {[%emt 0:00:26]}
23. bxa4 Qxa4 {[%emt 0:00:38]} 24. Qd2 {[%emt 0:03:49]} Qxa3 {[%emt 0:03:32]}
25. Qg5 {[%emt 0:05:29]} f6 {[%emt 0:01:43]} 26. Bxf6 {[%emt 0:00:31]} Rd7 {
[%emt 0:00:03]} 27. Ne5 {[%emt 0:01:30]} Rdc7 {[%emt 0:00:32]} 28. Bd8 {
[%emt 0:05:21]} Rc8 {[%emt 0:00:22]} 29. Bh5 {[%emt 0:01:43]} Rc1 {[%emt 0:17:
17]} 30. Bf7+ {[%emt 0:03:51]} Kf8 {[%emt 0:01:36]} 31. Bxe6 {[%emt 0:13:35]}
Rxf1+ {[%emt 0:00:56]} 32. Kxf1 {[%emt 0:00:18]} Rc1+ {[%emt 0:01:42]} 33. Ke2
{[%emt 0:00:19]} Rc2+ {[%emt 0:00:27]} 34. Kd1 {[%emt 0:02:41]} Rxf2 {[%emt 0:
00:41]} 35. Ke1 {[%emt 0:01:23]} Rb2 {[%emt 0:09:22]} 36. Qf5+ {[%emt 0:06:36]}
Ke8 {[%emt 0:00:15]} 37. Qf7+ {[%emt 0:00:12]} Kxd8 {[%emt 0:00:22]} 38. Qg8+ {
[%emt 0:00:14]} Ke7 {[%emt 0:01:21]} 39. Qxg7+ {[%emt 0:01:01]} Kxe6 {[%emt 0:
01:12]} 40. Qf7+ {[%emt 0:00:05]} Kd6 41. Qf8+ 1-0

[Event "African Open (w)"]
[Site "followchess.com"]
[Date "2022.09.20"]
[Round "3"]
[White "Mudodo, Refiloe Hazel"]
[Black "Aramude, Sandra"]
[Result "1-0"]
[ECO "C41"]
[WhiteElo "1683"]
[BlackElo "1813"]
[PlyCount "103"]
[EventDate "2022.??.??"]
[TimeControl "5400+30"]

1. e4 {[%emt 0:00:12]} e5 {[%emt 0:00:02]} 2. Nf3 {[%emt 0:00:18]} d6 {[%emt 0:
00:15]} 3. d4 {[%emt 0:00:41]} exd4 {[%emt 0:00:12]} 4. Qxd4 {[%emt 0:00:55]}
Nc6 {[%emt 0:01:08]} 5. Bb5 {[%emt 0:01:46]} Bd7 {[%emt 0:00:49]} 6. Bxc6 {
[%emt 0:01:17]} Bxc6 {[%emt 0:00:06]} 7. O-O {[%emt 0:01:24]} Qf6 {[%emt 0:10:
12]} 8. Nc3 {[%emt 0:06:33]} Qxd4 {[%emt 0:05:00]} 9. Nxd4 {[%emt 0:00:12]} Bd7
{[%emt 0:01:42]} 10. Bf4 {[%emt 0:04:09]} f6 {[%emt 0:02:55]} 11. Ndb5 {
[%emt 0:03:53]} Bxb5 {[%emt 0:05:42]} 12. Nxb5 {[%emt 0:00:10]} Kd7 {[%emt 0:
00:04]} 13. c4 {[%emt 0:03:03]} a6 {[%emt 0:03:16]} 14. Nd4 {[%emt 0:00:55]} c5
{[%emt 0:01:37]} 15. Nf5 {[%emt 0:00:52]} g6 {[%emt 0:00:37]} 16. Nxd6 {
[%emt 0:00:33]} Bxd6 {[%emt 0:07:21]} 17. Rfd1 Rd8 {[%emt 0:12:45]} 18. Rxd6+ {
[%emt 0:00:14]} Kc8 {[%emt 0:00:02]} 19. Rxd8+ {[%emt 0:00:19]} Kxd8 {[%emt 0:
00:01]} 20. Rd1+ {[%emt 0:00:09]} Kc8 {[%emt 0:05:43]} 21. Rd5 {[%emt 0:00:23]}
Ne7 {[%emt 0:02:01]} 22. Rxc5+ {[%emt 0:00:10]} Nc6 {[%emt 0:02:49]} 23. a3 {
[%emt 0:03:48]} Rd8 {[%emt 0:05:29]} 24. Rd5 {[%emt 0:00:09]} Na5 {[%emt 0:03:
20]} 25. Kf1 {[%emt 0:03:29]} b5 {[%emt 0:07:13]} 26. Rc5+ {[%emt 0:00:46]} Kb7
{[%emt 0:04:50]} 27. cxb5 {[%emt 0:00:20]} Rd4 {[%emt 0:08:07]} 28. bxa6+ {
[%emt 0:02:16]} Kxa6 {[%emt 0:00:28]} 29. Bc7 {[%emt 0:01:20]} Nc4 {[%emt 0:02:
02]} 30. f3 {[%emt 0:04:13]} Nxb2 {[%emt 0:02:24]} 31. Ra5+ {[%emt 0:01:01]}
Kb7 {[%emt 0:00:00]} 32. Rb5+ {[%emt 0:00:20]} Kxc7 {[%emt 0:00:02]} 33. Rxb2 {
[%emt 0:00:08]} Rd3 {[%emt 0:00:50]} 34. Ra2 {[%emt 0:00:20]} Kb6 {[%emt 0:00:
02]} 35. Ke2 {[%emt 0:00:13]} Rb3 {[%emt 0:00:05]} 36. Kd2 {[%emt 0:00:59]} Ka5
{[%emt 0:00:23]} 37. a4 {[%emt 0:00:47]} g5 {[%emt 0:00:33]} 38. Ke2 {[%emt 0:
00:30]} h5 {[%emt 0:01:20]} 39. Kf2 {[%emt 0:00:33]} h4 {[%emt 0:01:32]} 40. g3
{[%emt 0:00:59]} h3 {[%emt 0:01:27]} 41. g4 {[%emt 0:00:27]} Rc3 {[%emt 0:00:
42]} 42. Rd2 {[%emt 0:03:48]} Rc6 {[%emt 0:00:20]} 43. Rd4 {[%emt 0:00:21]}
Rc2+ {[%emt 0:00:00]} 44. Kg3 {[%emt 0:00:00]} Ra2 {[%emt 0:00:00]} 45. Kxh3 {
[%emt 0:00:00]} Rxa4 {[%emt 0:00:00]} 46. Rxa4+ {[%emt 0:00:00]} Kxa4 {[%emt 0:
00:00]} 47. Kg3 {[%emt 0:00:00]} Kb4 {[%emt 0:00:00]} 48. h4 {[%emt 0:00:00]}
gxh4+ {[%emt 0:00:00]} 49. Kxh4 {[%emt 0:00:00]} Kc5 {[%emt 0:00:00]} 50. g5 {
[%emt 0:00:00]} fxg5+ {[%emt 0:00:00]} 51. Kxg5 {[%emt 0:00:00]} Kd6 {[%emt 0:
00:00]} 52. Kf6 {[%emt 0:00:00]} 1-0

[Event "African Open (w)"]
[Site "followchess.com"]
[Date "2022.09.20"]
[Round "3"]
[White "Ampaire Shakira"]
[Black "Laubscher, Anzel"]
[Result "0-1"]
[ECO "B70"]
[WhiteElo "1657"]
[BlackElo "1705"]
[PlyCount "110"]
[EventDate "2022.??.??"]
[TimeControl "5400+30"]

1. e4 {[%emt 0:00:23]} c5 {[%emt 0:00:04]} 2. Nf3 {[%emt 0:00:16]} d6 {[%emt 0:
00:07]} 3. d4 {[%emt 0:01:25]} cxd4 {[%emt 0:00:07]} 4. Nxd4 {[%emt 0:00:07]}
Nf6 {[%emt 0:00:10]} 5. Nc3 {[%emt 0:00:18]} g6 {[%emt 0:00:14]} 6. Bb5+ {
[%emt 0:03:11]} Bd7 {[%emt 0:00:46]} 7. O-O {[%emt 0:00:18]} Bg7 {[%emt 0:01:
22]} 8. Re1 {[%emt 0:01:09]} O-O {[%emt 0:02:13]} 9. Bg5 {[%emt 0:03:17]} Nc6 {
[%emt 0:07:55]} 10. Nxc6 {[%emt 0:07:01]} bxc6 {[%emt 0:01:58]} 11. Bc4 {
[%emt 0:09:24]} Ng4 {[%emt 0:12:41]} 12. Qd2 {[%emt 0:08:25]} Rb8 {[%emt 0:09:
51]} 13. Bb3 {[%emt 0:01:59]} Be6 {[%emt 0:08:28]} 14. h3 {[%emt 0:01:07]} Ne5
{[%emt 0:05:58]} 15. Bh6 {[%emt 0:10:16]} c5 {[%emt 0:12:00]} 16. Bxg7 {
[%emt 0:02:54]} Kxg7 {[%emt 0:00:27]} 17. Rab1 {[%emt 0:06:10]} Nc6 {[%emt 0:
06:38]} 18. Bd5 {[%emt 0:04:03]} Nd4 {[%emt 0:04:31]} 19. Ne2 {[%emt 0:01:05]}
Nxe2+ {[%emt 0:01:31]} 20. Rxe2 {[%emt 0:00:51]} Qb6 {[%emt 0:03:53]} 21. Re3 {
[%emt 0:03:50]} Qb4 {[%emt 0:02:46]} 22. Qd3 {[%emt 0:03:50]} Qd4 {[%emt 0:08:
34]} 23. Qxd4+ {[%emt 0:00:46]} cxd4 {[%emt 0:00:04]} 24. Rd3 {[%emt 0:07:18]}
Bxd5 {[%emt 0:00:24]} 25. exd5 {[%emt 0:00:13]} Rfc8 {[%emt 0:02:50]} 26. Rxd4
{[%emt 0:01:03]} Rxc2 {[%emt 0:00:46]} 27. Ra4 {[%emt 0:00:42]} Rb7 {[%emt 0:
02:29]} 28. b4 {[%emt 0:00:52]} Rd2 {[%emt 0:01:38]} 29. Ra5 {[%emt 0:00:26]}
Kf6 {[%emt 0:00:35]} 30. Re1 {[%emt 0:04:46]} Rc7 {[%emt 0:01:32]} 31. a3 {
[%emt 0:06:31]} h5 {[%emt 0:00:57]} 32. h4 {[%emt 0:03:00]} e6 {[%emt 0:00:47]}
33. dxe6 {[%emt 0:00:29]} fxe6 {[%emt 0:00:03]} 34. g3 {[%emt 0:00:34]} d5 {
[%emt 0:01:35]} 35. Ra6 Re7 {[%emt 0:00:17]} 36. b5 {[%emt 0:05:19]} Rb2 {
[%emt 0:00:47]} 37. a4 {[%emt 0:00:28]} Kf5 {[%emt 0:00:30]} 38. Re3 {[%emt 0:
00:41]} d4 {[%emt 0:00:54]} 39. Rf3+ {[%emt 0:00:43]} Ke5 {[%emt 0:00:27]} 40.
Rc6 {[%emt 0:04:09]} Ra2 {[%emt 0:00:25]} 41. Rc5+ {[%emt 0:01:10]} Kd6 {
[%emt 0:00:00]} 42. Rc6+ {[%emt 0:00:00]} Kd5 {[%emt 0:00:00]} 43. Rb3 {
[%emt 0:00:00]} Rxa4 {[%emt 0:00:00]} 44. Rc8 {[%emt 0:00:00]} Rd7 {[%emt 0:00:
00]} 45. Rb8 {[%emt 0:00:00]} Ra1+ {[%emt 0:00:00]} 46. Kg2 {[%emt 0:00:00]}
Kc4 {[%emt 0:00:00]} 47. Rf3 {[%emt 0:00:00]} d3 {[%emt 0:00:00]} 48. Rxd3 {
[%emt 0:00:00]} Kxd3 {[%emt 0:00:00]} 49. b6 {[%emt 0:00:00]} axb6 {[%emt 0:00:
00]} 50. Rxb6 {[%emt 0:00:00]} Ra2 {[%emt 0:00:00]} 51. Rxe6 {[%emt 0:00:00]}
Rf7 {[%emt 0:00:00]} 52. Re3+ {[%emt 0:02:59]} Kd4 {[%emt 0:00:00]} 53. Rf3 {
[%emt 0:01:31]} Rxf3 {[%emt 0:00:00]} 54. Kxf3 {[%emt 0:00:08]} Ke5 {[%emt 0:
00:00]} 55. g4 {[%emt 0:00:09]} Ra8 0-1

[Event "African Open (w)"]
[Site "followchess.com"]
[Date "2022.09.20"]
[Round "3"]
[White "Oyelese, Mayomi"]
[Black "Vilhete, Vania Fausto Da T."]
[Result "0-1"]
[ECO "D37"]
[WhiteElo "1677"]
[BlackElo "1718"]
[PlyCount "136"]
[EventDate "2022.??.??"]
[TimeControl "5400+30"]

1. d4 {[%emt 0:00:01]} d5 {[%emt 0:00:07]} 2. c4 {[%emt 0:00:07]} e6 {[%emt 0:
00:09]} 3. Nc3 {[%emt 0:00:05]} Nf6 {[%emt 0:00:09]} 4. Nf3 {[%emt 0:00:15]}
Be7 {[%emt 0:00:16]} 5. Bf4 {[%emt 0:00:46]} a6 {[%emt 0:00:17]} 6. e3 {
[%emt 0:01:27]} O-O {[%emt 0:00:07]} 7. h3 {[%emt 0:00:10]} Nbd7 {[%emt 0:00:
56]} 8. a3 {[%emt 0:00:59]} dxc4 {[%emt 0:02:00]} 9. Bxc4 {[%emt 0:00:04]} b5 {
[%emt 0:00:12]} 10. Bd3 {[%emt 0:00:26]} Bb7 {[%emt 0:00:17]} 11. O-O {[%emt 0:
00:18]} c5 {[%emt 0:00:27]} 12. dxc5 {[%emt 0:00:47]} Nxc5 {[%emt 0:00:35]} 13.
Be2 {[%emt 0:00:23]} Qb6 {[%emt 0:02:57]} 14. b4 {[%emt 0:13:01]} Nce4 {
[%emt 0:09:57]} 15. Nxe4 {[%emt 0:11:07]} Bxe4 {[%emt 0:00:44]} 16. Qd4 {
[%emt 0:02:18]} Qb7 {[%emt 0:03:50]} 17. Rac1 {[%emt 0:03:39]} Rac8 {[%emt 0:
03:19]} 18. Be5 {[%emt 0:08:22]} Rfd8 {[%emt 0:07:31]} 19. Qb2 {[%emt 0:00:02]}
h6 {[%emt 0:04:43]} 20. Rxc8 {[%emt 0:02:36]} Rxc8 {[%emt 0:03:43]} 21. Rc1 {
[%emt 0:00:08]} Rxc1+ {[%emt 0:08:17]} 22. Qxc1 {[%emt 0:00:06]} Nd7 {[%emt 0:
00:49]} 23. Bb2 {[%emt 0:16:48]} Nb6 {[%emt 0:03:23]} 24. Ne1 {[%emt 0:03:35]}
Bd5 {[%emt 0:07:13]} 25. Bf3 {[%emt 0:03:46]} Bxf3 {[%emt 0:03:26]} 26. Nxf3
Nc4 {[%emt 0:00:33]} 27. Bd4 {[%emt 0:03:42]} Qd5 {[%emt 0:08:57]} 28. Nd2 {
[%emt 0:09:30]} e5 {[%emt 0:16:04]} 29. Nxc4 {[%emt 0:04:04]} exd4 {[%emt 0:03:
54]} 30. Nb6 {[%emt 0:01:51]} Qb7 {[%emt 0:00:20]} 31. Qc8+ {[%emt 0:00:45]}
Qxc8 {[%emt 0:00:09]} 32. Nxc8 {[%emt 0:00:01]} Bf6 {[%emt 0:00:13]} 33. exd4 {
[%emt 0:01:59]} Bxd4 {[%emt 0:00:26]} 34. Ne7+ {[%emt 0:00:38]} Kf8 {[%emt 0:
00:37]} 35. Nd5 {[%emt 0:00:08]} Be5 {[%emt 0:03:39]} 36. Kf1 {[%emt 0:00:14]}
Ke8 {[%emt 0:00:25]} 37. Ke2 {[%emt 0:00:03]} Kd7 {[%emt 0:00:32]} 38. Kd3 {
[%emt 0:02:09]} Bb2 {[%emt 0:01:12]} 39. a4 {[%emt 0:04:38]} Kd6 {[%emt 0:02:
46]} 40. Nc3 {[%emt 0:08:25]} Bxc3 {[%emt 0:00:58]} 41. Kxc3 {[%emt 0:00:02]}
bxa4 {[%emt 0:00:17]} 42. Kb2 {[%emt 0:00:01]} Kc6 {[%emt 0:00:33]} 43. Ka3 {
[%emt 0:00:15]} Kb5 {[%emt 0:00:39]} 44. h4 {[%emt 0:00:00]} h5 {[%emt 0:00:00]
} 45. f3 {[%emt 0:00:00]} f5 {[%emt 0:00:00]} 46. f4 {[%emt 0:00:00]} g6 {
[%emt 0:00:00]} 47. g3 {[%emt 0:00:00]} a5 {[%emt 0:00:00]} 48. bxa5 {[%emt 0:
00:00]} Kxa5 {[%emt 0:00:00]} 49. Kb2 {[%emt 0:00:00]} Kb4 {[%emt 0:00:00]} 50.
Ka2 {[%emt 0:00:00]} a3 {[%emt 0:00:00]} 51. Kb1 {[%emt 0:00:00]} Kb3 {[%emt 0:
00:00]} 52. Ka1 {[%emt 0:00:00]} Kc3 {[%emt 0:00:00]} 53. Ka2 {[%emt 0:00:00]}
Kd3 {[%emt 0:00:00]} 54. Kxa3 {[%emt 0:00:00]} Ke3 {[%emt 0:00:00]} 55. Kb2 {
[%emt 0:00:00]} Kf3 {[%emt 0:00:00]} 56. Kc2 {[%emt 0:00:00]} Kxg3 {[%emt 0:00:
00]} 57. Kd2 {[%emt 0:00:00]} Kxf4 {[%emt 0:00:00]} 58. Ke2 {[%emt 0:00:00]}
Kg3 {[%emt 0:00:00]} 59. Kf1 {[%emt 0:00:00]} Kxh4 {[%emt 0:00:00]} 60. Kg2 {
[%emt 0:00:00]} Kg4 {[%emt 0:00:00]} 61. Kh2 {[%emt 0:00:00]} Kf3 {[%emt 0:00:
00]} 62. Kg1 {[%emt 0:00:00]} Ke2 {[%emt 0:00:00]} 63. Kg2 {[%emt 0:00:00]} f4
{[%emt 0:00:00]} 64. Kh3 {[%emt 0:00:00]} f3 {[%emt 0:00:00]} 65. Kh4 {[%emt 0:
00:00]} f2 {[%emt 0:00:00]} 66. Kg5 {[%emt 0:00:00]} f1=Q {[%emt 0:00:00]} 67.
Kh4 {[%emt 0:00:00]} Qg1 {[%emt 0:00:00]} 68. Kh3 {[%emt 0:00:00]} Kf3 {
[%emt 0:00:00]} 0-1

[Event "African Open (w)"]
[Site "followchess.com"]
[Date "2022.09.20"]
[Round "3"]
[White "Paulo, Jemima"]
[Black "Van Zyl, Charlize"]
[Result "1/2-1/2"]
[ECO "D31"]
[WhiteElo "1886"]
[BlackElo "1710"]
[PlyCount "65"]
[EventDate "2022.??.??"]
[TimeControl "5400+30"]

1. c4 {[%emt 0:00:02]} e6 {[%emt 0:00:09]} 2. Nc3 {[%emt 0:00:22]} d5 {[%emt 0:
00:07]} 3. d4 {[%emt 0:00:07]} a6 {[%emt 0:00:42]} 4. e3 {[%emt 0:00:42]} Nf6 {
[%emt 0:01:10]} 5. cxd5 {[%emt 0:01:07]} exd5 {[%emt 0:00:12]} 6. Bd3 {[%emt 0:
00:09]} Nc6 {[%emt 0:03:40]} 7. Nge2 {[%emt 0:00:19]} Bd6 {[%emt 0:05:29]} 8.
f3 {[%emt 0:02:27]} O-O {[%emt 0:03:43]} 9. O-O {[%emt 0:00:07]} Re8 {[%emt 0:
03:09]} 10. e4 {[%emt 0:00:56]} dxe4 {[%emt 0:01:44]} 11. fxe4 {[%emt 0:00:08]}
Nxd4 {[%emt 0:02:27]} 12. Nxd4 {[%emt 0:03:10]} Bc5 {[%emt 0:02:14]} 13. Kh1 {
[%emt 0:01:35]} Bxd4 {[%emt 0:01:21]} 14. Bg5 {[%emt 0:01:51]} Qd6 {[%emt 0:05:
11]} 15. e5 {[%emt 0:02:32]} Qxe5 {[%emt 0:11:28]} 16. Bxf6 {[%emt 0:04:47]}
gxf6 {[%emt 0:00:04]} 17. Ne4 {[%emt 0:00:20]} f5 {[%emt 0:06:07]} 18. Ng5 {
[%emt 0:00:11]} h6 {[%emt 0:11:25]} 19. Nf3 {[%emt 0:04:19]} Qg7 {[%emt 0:01:
41]} 20. Rc1 {[%emt 0:22:52]} Bb6 {[%emt 0:08:46]} 21. Nh4 {[%emt 0:01:45]} Qg4
{[%emt 0:02:17]} 22. Nxf5 {[%emt 0:10:40]} Bxf5 {[%emt 0:00:20]} 23. Bxf5 {
[%emt 0:01:01]} Qxd1 {[%emt 0:00:08]} 24. Rfxd1 {[%emt 0:00:07]} Rad8 {[%emt 0:
01:53]} 25. Rxd8 {[%emt 0:04:56]} Rxd8 {[%emt 0:00:04]} 26. h3 {[%emt 0:00:12]}
Rd2 {[%emt 0:01:51]} 27. Rc2 {[%emt 0:00:18]} Rxc2 {[%emt 0:00:39]} 28. Bxc2 {
[%emt 0:00:06]} Bd4 {[%emt 0:00:04]} 29. b3 {[%emt 0:00:09]} Kg7 {[%emt 0:00:
16]} 30. g4 {[%emt 0:04:36]} Kf6 {[%emt 0:01:01]} 31. Kg2 {[%emt 0:00:08]} Ke5
{[%emt 0:03:19]} 32. Kf3 {[%emt 0:00:09]} c5 {[%emt 0:01:15]} 33. a4 {[%emt 0:
00:11]} 1/2-1/2

[Event "African Open (w)"]
[Site "followchess.com"]
[Date "2022.09.20"]
[Round "3"]
[White "Phiri Bertha"]
[Black "Caxita, Esperanca"]
[Result "1/2-1/2"]
[ECO "B01"]
[WhiteElo "1584"]
[BlackElo "1961"]
[PlyCount "132"]
[EventDate "2022.??.??"]
[TimeControl "5400+30"]

1. e4 {[%emt 0:00:03]} d5 {[%emt 0:00:11]} 2. exd5 {[%emt 0:00:18]} Qxd5 {
[%emt 0:00:07]} 3. d4 {[%emt 0:00:58]} Nf6 {[%emt 0:00:32]} 4. Nf3 {[%emt 0:00:
12]} Bg4 {[%emt 0:00:19]} 5. Be2 {[%emt 0:00:04]} Nc6 {[%emt 0:00:39]} 6. c3 {
[%emt 0:00:05]} O-O-O {[%emt 0:01:03]} 7. Qb3 {[%emt 0:02:27]} Qh5 {[%emt 0:11:
05]} 8. h3 {[%emt 0:02:16]} e5 {[%emt 0:05:05]} 9. Be3 {[%emt 0:06:29]} e4 {
[%emt 0:02:37]} 10. Ng1 {[%emt 0:00:09]} Bxe2 {[%emt 0:01:07]} 11. Nxe2 {
[%emt 0:00:02]} Nd5 {[%emt 0:01:05]} 12. Nf4 {[%emt 0:07:09]} Nxf4 {[%emt 0:01:
01]} 13. Bxf4 {[%emt 0:00:06]} g5 {[%emt 0:01:30]} 14. g4 {[%emt 0:01:39]} Qg6
{[%emt 0:00:57]} 15. Be3 {[%emt 0:01:19]} h5 {[%emt 0:01:31]} 16. Rg1 {[%emt 0:
01:49]} hxg4 {[%emt 0:00:58]} 17. hxg4 {[%emt 0:00:11]} Bd6 {[%emt 0:05:08]}
18. Nd2 {[%emt 0:00:30]} Bh2 {[%emt 0:00:35]} 19. Rg2 {[%emt 0:02:19]} Bf4 {
[%emt 0:01:04]} 20. O-O-O {[%emt 0:00:28]} Bxe3 {[%emt 0:01:39]} 21. fxe3 {
[%emt 0:00:02]} Rh3 {[%emt 0:00:17]} 22. Re1 {[%emt 0:00:46]} Rdh8 {[%emt 0:01:
45]} 23. Qd5 {[%emt 0:00:05]} Re8 {[%emt 0:02:58]} 24. Rf2 {[%emt 0:02:58]} Rg3
{[%emt 0:20:12]} 25. Rxf7 {[%emt 0:02:25]} Ne7 {[%emt 0:03:07]} 26. Qe5 {
[%emt 0:00:19]} Qxf7 {[%emt 0:03:08]} 27. Qxg3 {[%emt 0:00:12]} Ng6 {[%emt 0:
03:48]} 28. Kb1 {[%emt 0:06:01]} Nh4 {[%emt 0:00:55]} 29. Rf1 {[%emt 0:00:08]}
Qg6 {[%emt 0:00:48]} 30. Kc1 {[%emt 0:03:08]} Qe6 {[%emt 0:01:31]} 31. a3 {
[%emt 0:18:40]} a5 {[%emt 0:00:27]} 32. c4 {[%emt 0:03:07]} Nf3 {[%emt 0:04:43]
} 33. d5 {[%emt 0:00:22]} Qa6 {[%emt 0:00:40]} 34. Rd1 {[%emt 0:15:16]} Nxd2 {
[%emt 0:05:52]} 35. Rxd2 {[%emt 0:00:24]} Qxc4+ {[%emt 0:00:29]} 36. Kb1 {
[%emt 0:01:26]} Qf1+ 37. Ka2 {[%emt 0:01:59]} Qf3 {[%emt 0:04:10]} 38. Qf2 {
[%emt 0:04:44]} Rf8 {[%emt 0:02:14]} 39. Qe2 {[%emt 0:00:12]} Qxe2 {[%emt 0:00:
25]} 40. Rxe2 {[%emt 0:00:14]} Rf3 {[%emt 0:00:28]} 41. Kb3 {[%emt 0:00:29]}
Rg3 {[%emt 0:00:30]} 42. Kc3 {[%emt 0:00:11]} Rxg4 {[%emt 0:00:21]} 43. Kd4 {
[%emt 0:00:04]} Kd7 {[%emt 0:07:45]} 44. Rf2 {[%emt 0:00:20]} Kd6 {[%emt 0:02:
22]} 45. Rf6+ {[%emt 0:00:16]} Ke7 {[%emt 0:00:20]} 46. Rf2 {[%emt 0:05:45]}
Rh4 {[%emt 0:00:00]} 47. Rg2 {[%emt 0:00:00]} Kf6 {[%emt 0:00:00]} 48. Rc2 {
[%emt 0:00:00]} g4 {[%emt 0:00:00]} 49. Kxe4 {[%emt 0:00:00]} g3+ {[%emt 0:00:
00]} 50. Kf3 {[%emt 0:00:00]} Rh2 {[%emt 0:00:00]} 51. Rxc7 {[%emt 0:00:00]}
Rxb2 {[%emt 0:00:00]} 52. Kxg3 {[%emt 0:00:00]} Ke5 {[%emt 0:00:00]} 53. Kf3 {
[%emt 0:00:00]} Kxd5 {[%emt 0:00:00]} 54. Kf4 {[%emt 0:00:00]} b5 {[%emt 0:00:
00]} 55. e4+ {[%emt 0:00:00]} Kd6 {[%emt 0:00:00]} 56. Ra7 {[%emt 0:00:00]} a4
{[%emt 0:00:00]} 57. e5+ {[%emt 0:00:00]} Kd5 {[%emt 0:00:00]} 58. Rd7+ {
[%emt 0:00:00]} Ke6 {[%emt 0:00:00]} 59. Rd6+ {[%emt 0:00:00]} Ke7 {[%emt 0:00:
00]} 60. Rb6 {[%emt 0:00:00]} Rb3 {[%emt 0:00:00]} 61. Ke4 {[%emt 0:00:00]}
Rxa3 {[%emt 0:00:00]} 62. Rxb5 {[%emt 0:00:00]} Ra1 {[%emt 0:00:00]} 63. Kd3 {
[%emt 0:00:00]} a3 {[%emt 0:00:00]} 64. Ra5 {[%emt 0:00:00]} Rh1 {[%emt 0:00:
00]} 65. Kc2 {[%emt 0:00:00]} Rh3 {[%emt 0:00:00]} 66. Kb1 {[%emt 0:00:00]} Ke8
1/2-1/2